Cogmind - Beta 15 @@@ ROGUE MODE // 2025.05.07 @ 10:23:47 Player: blackdogzx Result: Destroyed by Y-45 Defender with Heavy Assault Rifle Performance ------------- Evolutions (1) 500 Regions Visited (2) 400 Robots Destroyed (15) 75 Value Destroyed (289) 289 Prototype IDs (0) 0 Alien Tech Used (0) 0 Bonus (0) 0 TOTAL SCORE: 1264 Bonus ------- None Cogmind --------- Core Integrity 0/400 Matter 300/300 Energy 98/100 System Corruption 0% Temperature Cool (0) Movement Core (50) Location -9/Materials Parts ------- > --- POWER (1) -------- (None) > --- PROPULSION (2) --- (None) > --- UTILITY (4) ------ Visual Processing Unit > --- WEAPON (2) ------- (None) > --- INVENTORY (5) ---- (None) Peak State ------------ > --- POWER ------------ Improved Ion Engine > --- PROPULSION ------- Aluminum Leg Aluminum Leg > --- UTILITY ---------- Small Storage Unit Visual Processing Unit Sensor Array > --- WEAPON ----------- Medium Laser Medium Laser > --- INVENTORY -------- Light Ion Engine EM Pulse Gun [Rating: 10] Favorites ----------- Power Ion Engine Engine Ion Engine Propulsion Aluminum Leg Leg Aluminum Leg Utility Small Storage Unit Device Sensor Array Storage Small Storage Unit Processor Visual Processing Unit Weapon Medium Laser Energy Gun Medium Laser Build | -11 -10 -9 ------- Run | Yrd Mat Mat Slots Evolved 2 | . . 2 Power . | . . . Propulsion . | . . . Utility 2 | . . 2 Weapon . | . . . Parts Attached 11 | 6 1 4 Power 3 | 1 . 2 Engine 3 | 1 . 2 Core . | . . . Reactor . | . . . Propulsion 2 | 2 . . Treads . | . . . Leg 2 | 2 . . Wheel . | . . . Hover . | . . . Flight . | . . . Utility 3 | 1 1 1 Device 1 | . 1 . Storage 1 | 1 . . Processor 1 | . . 1 Hackware . | . . . Protection . | . . . Artifact . | . . . Weapon 3 | 2 . 1 Energy Gun 3 | 2 . 1 Energy Cannon . | . . . Ballistic Gun . | . . . Ballistic Cannon . | . . . Launcher . | . . . Special Weapon . | . . . Impact Weapon . | . . . Slashing Weapon . | . . . Piercing Weapon . | . . . Special Melee Weapon . | . . . Unidentified Prototypes . | . . . Parts Lost 10 | . 1 9 Power 3 | . 1 2 Propulsion 2 | . . 2 Utility 2 | . . 2 Weapon 3 | . . 3 Highest Loss Streak 9 | . 1 9 To Critical Strikes . | . . . Average Backups 2 | 2 2 1 Power . | . 1 . Propulsion . | . . . Utility . | . . . Weapon . | 1 1 . Tool/Special . | . . . Unused Backups . | . . . Power . | . . . Propulsion . | . . . Utility . | . . . Weapon . | . . . Tool/Special . | . . . Average Slot Usage (%) 83 | . 90 69 Engine 6 | . 5 7 Leg 24 | . 28 16 Device 11 | . 12 8 Storage 12 | . 14 10 Processor 3 | . . 11 Energy Gun 24 | . 28 15 Peak Build Rating 10 | 6 7 10 Average Rating 6 | 3 6 8 On Entrance 4 | . 6 6 Naked Turns . | . . . Heaviest Build 17 | 14 15 17 Greatest Support 20 | 20 20 20 Greatest Overweight (x) 3 | . 3 2 Average Overweight (x) . | . . . Largest Inventory Capacity 8 | 8 8 8 Average Capacity 7 | 6 8 7 Most Carried 5 | 5 3 2 Average Carried 2 | 2 2 1 Final Capacity 8 | 8 8 5 Final Carried 3 | 2 3 . Class Distribution -------------------- 100% | Mutant Dominant Class ---------------- Mutant | -10/Materials Mutant | -9/Materials Resources | -11 -10 -9 ----------- Run | Yrd Mat Mat Matter Collected 295 | 223 72 . Remotely . | . . . Salvage Created 377 | . 174 203 Parts 25 | . 14 11 Haulers Intercepted . | . . . Recyclers Shooed 1 | . 1 . Parts Field Recycled . | . . . Retrieved Matter . | . . . Parts Self-Destructed . | . . . Prevented . | . . . Kills | -11 -10 -9 ------- Run | Yrd Mat Mat Combat Hostiles Destroyed 13 | . 6 7 Guns 13 | . 6 7 Classes Destroyed 5 | . 3 2 Worker 1 | . . 1 Watcher 1 | . 1 . Swarmer 8 | . 3 5 Grunt 3 | . 3 . Sentry 2 | . . 2 Best Kill Streak 8 | . 4 8 Combat Bots Only 7 | . 3 7 Max Kills in Single Turn 2 | . 2 1 Gunslinging 1 | . 1 . Exploded . | . . . Melee . | . . . Uniques/NPCs Destroyed . | . . . Combat | -11 -10 -9 -------- Run | Yrd Mat Mat Hostile Shots Fired 142 | . 29 113 Missed 28 | . 7 21 Hits 114 | . 22 92 Projectile 114 | . 22 92 Critical Strikes 3 | . . 3 Damage Taken 1147 | . 219 928 Core 426 | . 22 404 Absorbed by Shields . | . . . Core Remaining (%) 95 | 100 91 . Volleys Fired 35 | . 16 19 Largest 2 | . 2 2 Hottest 100 | . 100 100 Shots Fired 53 | . 32 21 Gun 53 | . 32 21 Cannon . | . . . Launcher . | . . . Special . | . . . Kinetic . | . . . Thermal 52 | . 32 20 Explosive . | . . . Electromagnetic 1 | . . 1 Robot Hit Streak 14 | . 14 8 Robot Miss Streak 4 | . 4 3 Penetration Max . | . . . Secondary Targets 2 | . 2 . Max Gunslinging Chain 1 | . 1 . Shots Hit Robots 33 | . 20 13 Core Hits 21 | . 11 10 Critical Kills . | . . . Critical Parts Destroyed . | . . . Critical Strikes 3 | . 1 2 Burn 3 | . 1 2 Melee Attacks . | . . . Impact . | . . . Slashing . | . . . Piercing . | . . . Sneak Attacks . | . . . Combat Hostiles . | . . . Follow-up Attacks . | . . . Damage Inflicted 428 | . 251 177 Guns 427 | . 251 176 Cannons . | . . . Explosions . | . . . Melee . | . . . Ramming 1 | . . 1 Kinetic . | . . . Thermal 417 | . 251 166 Explosive . | . . . Electromagnetic 10 | . . 10 Impact . | . . . Slashing . | . . . Piercing . | . . . Highest Corruption . | . . . Average Corruption . | . . . Corruption Purged . | . . . Corruption Blocked . | . . . Overload Shots . | . . . Overflow Damage . | . . . Projectiles . | . . . Explosions . | . . . Melee . | . . . Knockbacks . | . . . Impact . | . . . Kinetic . | . . . Secondary . | . . . Self-Inflicted Damage . | . . . Shots . | . . . Rammed 2 | . . 2 Targets Rammed 2 | . . 2 Kicked . | . . . Crushed . | . . . Highest Temperature 255 | . 255 216 Average Temperature 97 | . 87 111 Received Heat Transfer 264 | . 90 174 Siege Activations . | . . . Martial Activations . | . . . Shielding Activations . | . . . Robots Disrupted . | . . . Combat Hostiles . | . . . Robots Corrupted . | . . . Combat Hostiles . | . . . Parts Fried . | . . . Impact Corruptions . | . . . Robots Melted . | . . . Combat Hostiles . | . . . Parts Melted 4 | . 2 2 Heat Transferred 1443 | . 814 629 Parts Sabotaged . | . . . Parts Stolen . | . . . Parts Stripped . | . . . Power Chain Reactions . | . . . Alert | -11 -10 -9 ------- Run | Yrd Mat Mat Maximum Alert Level . | . . . Low Security (%) 100 | 100 100 100 Level 1 . | . . . Level 2 . | . . . Level 3 . | . . . Level 4 . | . . . Level 5 . | . . . High Security . | . . . Max Security . | . . . Peak Influence 145 | . 90 145 Initial 2 | . . 2 Average 29 | . 28 41 Influence Increases 342 | . 137 205 Destroy 0b10 Robot/C 260 | . 120 140 Destroy 0b10 Robot/NC 10 | . 5 5 Destroy Leader 42 | . 12 30 Lose Combat Pursuer 30 | . . 30 Influence Decreases 247 | . 130 117 Entered New Map 5 | . . 5 Time Decay 152 | . 120 32 Lost Part 90 | . 10 80 Squads Dispatched 1 | . 1 . Investigation . | . . . Extermination . | . . . Reinforcement 1 | . 1 . Assault . | . . . Garrison . | . . . Intercept . | . . . Searches Triggered . | . . . Construction Impeded . | . . . Haulers Reinforced . | . . . Active Scanning Responses . | . . . Cargo Convoy Interrupts . | . . . Stealth | -11 -10 -9 --------- Run | Yrd Mat Mat Distress Signals 2 | . . 2 Communications Jammed . | . . . Distress Signals . | . . . Times Spotted 24 | . 8 16 Peak Tracking Total 12 | . 5 12 Tactical Retreats 1 | . . 1 Traps | -11 -10 -9 ------- Run | Yrd Mat Mat Traps Triggered 1 | . 1 . Indirectly . | . . . Trap Hack Attempts . | . . . Triggered . | . . . Disarmed . | . . . Reprogrammed . | . . . Reused . | . . . Traps Extracted . | . . . Installed . | . . . Triggered . | . . . Machines | -11 -10 -9 ---------- Run | Yrd Mat Mat Machines Disabled . | . . . Max in Single Turn . | . . . Machines Repaired . | . . . Machines Dismantled . | . . . Machines Sabotaged . | . . . Overloaded Fab Kills . | . . . Hacking | -11 -10 -9 --------- Run | Yrd Mat Mat Machines Accessed . | . . . Terminals . | . . . Fabricators . | . . . Repair Stations . | . . . Recycling Units . | . . . Scanalyzers . | . . . Garrison Access . | . . . Total Hacks . | . . . Successful . | . . . Failed . | . . . Catastrophic . | . . . Database Lockouts . | . . . Manual . | . . . Terminals . | . . . Fabricators . | . . . Repair Stations . | . . . Recycling Units . | . . . Scanalyzers . | . . . Garrison Access . | . . . Terminal Hacks . | . . . Fabricator Hacks . | . . . Repair Station Hacks . | . . . Recycling Unit Hacks . | . . . Scanalyzer . | . . . Garrison Access Hacks . | . . . Unauthorized Hacks . | . . . Terminals . | . . . Fabricators . | . . . Repair Stations . | . . . Recycling Units . | . . . Scanalyzers . | . . . Garrison Access . | . . . Data Cores Recovered . | . . . Used . | . . . Hacking Detections . | . . . Full Trace Events . | . . . Feedback Events . | . . . Feedback Blocked . | . . . Robot Schematics Acquired . | . . . Robots Built . | . . . Authchips . | . . . Time . | . . . Total Robot Build Rating . | . . . Part Schematics Acquired . | . . . Parts Built . | . . . Authchips . | . . . Time . | . . . Total Part Build Rating . | . . . Parts Repaired . | . . . Time . | . . . Parts Recycled . | . . . Recycled Matter . | . . . Retrieved Matter . | . . . Retrieved Components . | . . . Parts Scanalyzed . | . . . Part Schematics Acquired . | . . . Parts Damaged . | . . . Bothacking | -11 -10 -9 ------------ Run | Yrd Mat Mat Used RIF Installer . | . . . Robots Hacked . | . . . Non-combat . | . . . Combat . | . . . Robot Hacks Applied . | . . . Relay Couplers Released . | . . . Fabnet Peak Effective % . | . . . Robots Rewired . | . . . Allies Hacked . | . . . Hacks Repelled . | . . . Allies | -11 -10 -9 -------- Run | Yrd Mat Mat Total Allies . | . . . Largest Group . | . . . Highest-Rated Group . | . . . Highest-Rated Ally . | . . . Total Orders . | . . . Ally Attacks . | . . . Total Damage . | . . . Kills . | . . . Allies Corrupted . | . . . Allies Melted . | . . . Intel | -11 -10 -9 ------- Run | Yrd Mat Mat Active Infowar (turns) 529 | . 374 155 Optics 155 | . . 155 Sensors 495 | . 374 121 Robot Analysis Total . | . . . Derelict Logs Recovered . | . . . Drone Launches . | . . . Drone Recoveries . | . . . Exploration | -11 -10 -9 ------------- Run | Yrd Mat Mat Turns Passed 600 | 50 395 155 Spaces Moved 405 | 38 275 92 Core 35 | 12 1 22 Treads . | . . . Legs 370 | 26 274 70 Wheels . | . . . Hover . | . . . Flight . | . . . Fastest Speed 50 | 50 120 50 Average Speed 115 | 97 120 110 Slowest Speed 200 | 120 200 150 Overloaded Moves . | . . . Propulsion Burnouts . | . . . Robots Hopped . | . . . Potential Cave-ins . | . . . Cave-ins Triggered . | . . . Exploration Rate (%) 15 | 4 38 4 Regions Visited 2 Branch Regions . Pre-discovered Areas . | . . . Known Exits Taken . | . . . Unknown Exits Taken 2 | 1 1 . Scrap Searched . | . . . Spaces Dug . | . . . Terrain Destroyed . | . . . Melee . | . . . Projectile . | . . . AOE . | . . . Terrain Rammed . | . . . Walls Destroyed . | . . . Machines Disabled . | . . . Actions | -11 -10 -9 --------- Run | Yrd Mat Mat Total 479 | 51 305 123 Wait 16 | . 10 6 Move 403 | 37 274 92 Hop . | . . . Pick Up 9 | 8 1 . Fast Attach 5 | . 4 1 Attach 9 | 6 . 3 Detach . | . . . Swap . | . . . Drop . | . . . Fire 35 | . 16 19 Melee . | . . . Ram 2 | . . 2 Kick . | . . . Crush . | . . . Escape Stasis . | . . . Rewire . | . . . Trap . | . . . Miscellaneous . | . . . Route ------- -11/Scrapyard -10/Materials -9/Materials History --------- Turn | Location | Event 12 | -11/Scrapyard | Discovered new exit (range 16) 51 | -11/Scrapyard | Entered Materials 317 | -10/Materials | Build established: Mutant 384 | -10/Materials | Discovered new exit (range 8) 446 | -10/Materials | Entered another Materials area 446 | -9/Materials | Evolved 2 slots: Utility x2 575 | -9/Materials | Core integrity fell below 50% 591 | -9/Materials | Destroyed 7 combat bots 593 | -9/Materials | Core integrity fell below 20% 601 | -9/Materials | Destroyed by Y-45 Defender with Heavy Assault Rifle Last Messages --------------- 00563_ Y-45 Defender destroyed. 00565_ Aluminum Leg destroyed. 00565_ K-01 Serf collects debris. 00565_ EM Pulse Gun destroyed. 00566_ K-01 Serf collects debris. 00567_ Sensor Array destroyed. 00568_ K-01 Serf collects debris. 00568_ Y-45 Defender destroyed. 00569_ K-01 Serf collects debris. 00570_ S-10 Pest destroyed. 00571_ K-01 Serf collects debris. 00572_ Imp. Ion Engine destroyed. 00572_ K-01 Serf collects debris. 00573_ Med. Laser destroyed. 00574_ K-01 Serf collects debris. 00592_ Slammed into S-10 Pest. 00593_ Lgt. Ion Engine broken. 00593_ Destabilizing: Short circuit. 00595_ Sml. Storage Unit destroyed. 00597_ Broken Lgt. Ion Engine destroyed. Map ----- +----------------------------------------------------+ | | | | | | | | | ????????????????????????????????????????????? | | ????????????????????????????????????????????? | | ????????????????????????????????????????????? | | ????????????????????????????????????????????? | | ????????????????????????????????????????????? | | ????????????????????????????????????????????? | | ???????????????? ???????????????????????????? | | ???????????????? ???????????????????????????? | | ????????????????? ??????????????????????????? | | ????????????????? ?????????????????????????? | | ??????????????????+##???????????????????????? | | ??????????????????? ##?????????????????????? | | ??????????????????? ????????????????????? | | ???????????????????? ????????????????????? | | ????????????????????? ???????????????###### | | ?????????????????????# k???????????##### # | | ?????????????????????# ??????????# # # | | ?????????????????????# ??????????# # # | | ?????????????????????#%%=??????????# # # | | ?????????????????????#u[%########### + =[ # | | ?????????????????????# %%%= ss # =] # | | ???????????????" """ + [!@% gg # =] # | | ???????????????" """ # [ Y # # | | ???????????????" ""??# ############### # | | ?????????????????????# ??????????????###### | | ?????????????????????# ???????????????????? | | ?????????????????????+ ???????????????????? | | ???????????????????? # ???????????????????? | | ???????????????????" # ???????????????????? | | ??????????????????""?# ????????????????????? | | ?????????????????""??# ????????????????????? | | ?????????????????????# ????????????????????? | | ?????????????????????# ????????????????????? | | ?????????????????????# ????????????????????? | | ?????????????????????# ????????????????????? | | ????????????????????? ?????????????????????? | | ????????????????????? ?????????????????????? | | ????????????????????? ??????????????????????? | | ????????????????????????????????????????????? | | ????????????????????????????????????????????? | | ????????????????????????????????????????????? | | ????????????????????????????????????????????? | | ????????????????????????????????????????????? | | ????????????????????????????????????????????? | | ????????????????????????????????????????????? | | ????????????????????????????????????????????? | +----------------------------------------------------+ Best States ------------- Heat Dissipation 28 Energy Generation 12 Energy Capacity 265 Matter Stores 300 Matter Capacity 300 Sight Range 18 Robot Scan Range 14 Terrain Scan Density 10 Evasion (%) 55 Item Schematics ----------------- None Robot Schematics ------------------ None Fabricated ------------ Nothing Repaired ---------- Nothing Alien Tech Used ----------------- None Achievements -------------- None Challenges ------------ None Game ------ Seed blame! Manual? 1 Play Time 00:14:50 Cumulative 29.4 hours Start 2025.05.07 @ 10:09:52 End 2025.05.07 @ 10:23:47 Sessions 1 Manual Loads 0 Difficulty Rogue Special Mode None Game No. 55 Rogue 52 Adventurer 3 Explorer 0 Win Type - Total 0 Types 0/0/0/0/0/0/0/0/0/0 Lore% 9 Gallery% 19 Achievement% 17 Wizard Run 0 Options --------- Layout 1 ASCII 0 Keyboard 1 Movement Numpad Keybinds 0 Fullscreen 1 Font 24/Terminus Map View 50x35 Zoom Use 0% Tactical HUD 1 Map Filters NONE Filters NONE Steam 1 RUN: 14d20c11-1cd9-401f-a5c1-5384d87b1683